bitfinex-derivatives/quotes_SOLF0:USTF0_20250625
["timestamp","ask_amount","ask_price","bid_price","bid_amount"]
[1750836055356,10.17060201,146.59,146.56,6.8201]
[1750836055859,34.28,146.58,146.56,6.8201]
[1750836056461,3.35190201,146.57,146.5,6.34554205]
[1750836056655,3.35190201,146.55,146.48,12.05504406]
[1750836056854,34.28,146.54,146.49,3.16945522]
[1750836057050,34.28,146.54,146.48,12.05504406]
[1750836057258,34.28,146.54,146.49,3.16945631]
[1750836057452,34.28,146.54,146.53,6.8215]
[1750836059068,34.28,146.54,146.52,6.8217]
[1750836059360,34.28,146.54,146.48,5.70950201]
[1750836059562,37.63190201,146.54,146.49,3.17780262]
[1750836059766,44.45310201,146.54,146.48,8.70314205]
[1750836060067,44.45310201,146.54,146.49,3.17780262]
[1750836060254,44.45310201,146.54,146.48,8.70314205]
[1750836060458,44.45310201,146.54,146.51,6.8221]
[1750836061670,37.63190201,146.54,146.51,6.8221]
[1750836062360,44.45290201,146.54,146.51,6.8221]
[1750836062765,37.63190201,146.54,146.48,8.70314205]
[1750836062970,34.28,146.53,146.5,3.35190201]
[1750836063270,17.06330201,146.58,146.55,6.8205]
[1750836063473,34.28,146.57,146.55,6.8205]
[1750836063772,34.28,146.57,146.5,9.69744406]
[1750836063974,34.28,146.56,146.51,3.18009073]
[1750836064165,37.63190201,146.56,146.49,10.95204205]
[1750836064366,37.63190201,146.56,146.52,6.8217]
[1750836064765,6.8208,146.55,146.52,6.8217]
[1750836064965,10.17332272,146.55,146.52,6.8217]
[1750836066572,3.35252272,146.55,146.53,6.8213]
[1750836066970,34.28,146.56,146.5,6.34554205]
[1750836067170,34.28,146.56,146.51,3.18172337]
[1750836067370,34.28,146.56,146.5,6.34554205]
[1750836067669,41.1003,146.56,146.53,6.8212]
[1750836068272,34.28,146.56,146.49,10.95204205]
[1750836068475,3.35252272,146.55,146.49,6.34554205]
[1750836069972,10.17342272,146.55,146.49,6.34554205]
[1750836070376,34.28,146.54,146.5,3.18377058]
[1750836070578,34.28,146.54,146.5,6.34554205]
[1750836070877,34.28,146.54,146.53,6.8211]
[1750836071472,6.8201,146.56,146.54,6.821]
[1750836071668,10.17232272,146.57,146.54,6.821]
[1750836071875,34.28,146.56,146.53,6.34554205]
[1750836072074,34.28,146.56,146.55,6.8205]
[1750836072369,599.45142272,146.59,146.52,6.34554205]
[1750836072574,589.28,146.59,146.53,12.88083546]
[1750836072775,41.0994,146.58,146.54,3.18277069]
[1750836072971,3.35252272,146.61,146.53,9.69806477]
[1750836073180,34.28,146.6,146.58,6.8188]
[1750836074385,34.28,146.6,146.59,6.8187]
[1750836075986,14.27475266,146.62,146.59,6.8187]
[1750836076179,34.28,146.61,146.59,6.8187]
[1750836077388,34.28,146.61,146.6,6.8182]
[1750836080188,4.12475252,146.62,146.56,9.69495258]
[1750836080382,34.28,146.62,146.58,6.34554205]
[1750836080788,34.28,146.62,146.61,6.8177]
[1750836080989,34.28,146.62,146.58,6.34554205]
[1750836081294,3.34941053,146.6,146.56,6.34554205]
[1750836082190,3.34941053,146.6,146.58,6.8188]
[1750836082786,7.47416305,146.6,146.58,6.8188]
[1750836083288,7.48598566,146.6,146.58,6.8188]
[1750836084090,3.34941053,146.6,146.58,6.8188]
[1750836084293,4.13657513,146.59,146.57,6.8193]
[1750836084489,34.6,146.58,146.57,6.8193]
[1750836089490,34.6,146.58,146.57,10.00447663]
[1750836092389,34.6,146.58,146.57,10.01277324]
[1750836092588,34.6,146.58,146.57,10.01296982]
[1750836092892,34.6,146.58,146.57,6.8193]
[1750836094189,34.6,146.58,146.57,10.01259115]
[1750836094596,34.6,146.58,146.57,6.8193]
[1750836094999,34.6,146.58,146.56,6.8198]
[1750836096093,3.34941053,146.57,146.55,6.8203]
[1750836098088,3.35220344,146.56,146.5,6.34554205]
[1750836098394,3.35220344,146.53,146.51,9.54089654]
[1750836098703,3.35220344,146.53,146.49,6.34554205]
[1750836098704,41.4221,146.52,146.49,6.34554205]
[1750836098994,10.17677575,146.51,146.5,3.19538259]
[1750836099199,3.35437575,146.51,146.49,6.34554205]
[1750836099397,3.35437575,146.51,146.48,6.34554205]
[1750836099594,10.17697575,146.51,146.49,3.19723186]
[1750836099794,10.17697575,146.51,146.48,13.16924205]
[1750836100001,3.35437575,146.51,146.49,9.54282317]
[1750836100200,10.17677575,146.51,146.5,3.19728112]
[1750836100595,10.17677575,146.51,146.48,13.16914205]
[1750836100892,10.17677575,146.51,146.49,3.19527359]
[1750836101089,34.62,146.51,146.48,6.34554205]
[1750836101293,34.62,146.51,146.49,9.54003485]
[1750836101489,34.62,146.52,146.51,6.8224]
[1750836101889,3.35437575,146.54,146.51,6.8224]
[1750836102196,34.62,146.53,146.51,6.8224]
[1750836104707,41.4415,146.53,146.5,13.16814205]
[1750836104911,41.4415,146.53,146.5,6.8226]
[1750836105703,3.35437575,146.52,146.48,6.34554205]
[1750836105908,3.35437575,146.5,146.46,6.34554205]
[1750836106112,41.4433,146.49,146.46,13.17004205]
[1750836106314,3.35437575,146.48,146.46,6.34554205]
[1750836106501,3.35437575,146.48,146.44,6.34554205]
[1750836107010,3.35437575,146.48,146.46,6.8243]
[1750836107904,4.11662194,146.53,146.44,6.34554205]
[1750836108201,34.62,146.52,146.47,6.34554205]
[1750836108399,34.62,146.52,146.51,6.8221]
[1750836109014,34.62,146.52,146.47,6.34554205]
[1750836109213,34.62,146.52,146.5,6.8226]
[1750836111021,41.4419,146.52,146.49,6.8231]
[1750836111610,41.4419,146.52,146.47,6.34554205]
[1750836111815,41.4419,146.52,146.48,6.8235]
[1750836112215,6.8224,146.51,146.48,6.8235]
[1750836113718,6.8224,146.51,146.49,6.8233]
[1750836114220,37.97437575,146.52,146.48,6.8237]
[1750836115319,6.8227,146.51,146.48,6.8237]
[1750836116423,34.62,146.52,146.45,6.33585273]
[1750836116616,3.35437575,146.48,146.43,6.33585273]
[1750836116927,3.35437575,146.46,146.42,6.33585273]
[1750836117114,34.56,146.45,146.41,13.31705273]
[1750836118410,34.56,146.45,146.44,6.8256]
[1750836118615,34.56,146.45,146.41,4.6809]
[1750836119011,34.56,146.45,146.43,6.8258]
[1750836119625,41.3852,146.45,146.43,6.8258]
[1750836120326,41.3852,146.45,146.42,6.8264]
[1750836120531,34.56,146.45,146.42,6.8264]
[1750836120716,34.56,146.45,146.39,92.54236826]
[1750836120918,34.56,146.45,146.43,6.8261]
[1750836121223,34.56,146.45,146.39,92.54236826]
[1750836121522,41.3854,146.45,146.42,6.8266]
[1750836123222,34.56,146.45,146.43,6.8261]
[1750836123530,34.56,146.45,146.38,6.33585273]
[1750836123721,2.3321,146.49,146.46,6.8247]
[1750836123722,3.35437575,146.49,146.46,6.8247]
[1750836123929,34.58,146.47,146.41,9.69022848]
[1750836124426,34.58,146.47,146.46,6.8247]
[1750836125223,3.35437575,146.49,146.47,6.8241]
[1750836125423,34.58,146.48,146.47,6.8241]
[1750836126030,34.58,146.48,146.41,9.69022848]
[1750836126226,3.35437575,146.47,146.4,6.33585273]
[1750836126540,3.35437575,146.47,146.45,6.825]
[1750836128029,10.17867575,146.47,146.45,6.825]
[1750836128233,3.35437575,146.47,146.44,6.8255]
[1750836128731,3.35437575,146.47,146.4,6.33585273]
[1750836129235,10.17867575,146.47,146.44,6.8252]
[1750836131435,10.17867575,146.47,146.45,6.8252]
[1750836132835,3.35437575,146.47,146.45,6.8252]
[1750836134134,10.17867575,146.47,146.45,6.8252]
[1750836135336,3.35437575,146.47,146.45,6.8252]
[1750836136236,3.35437575,146.47,146.4,6.33585273]
[1750836136438,34.58,146.48,146.39,13.6556]
[1750836136439,3.35437575,146.45,146.39,19.99145273]
[1750836136639,34.58,146.44,146.39,19.99145273]
[1750836137543,34.58,146.44,146.43,6.8259]
[1750836143944,37.93437575,146.44,146.43,6.8259]
[1750836145047,34.58,146.44,146.43,6.8259]
[1750836158161,34.58,146.44,146.42,6.33585273]
[1750836158653,34.58,146.44,146.41,13.16265273]
[1750836158654,10.18047575,146.43,146.41,13.16265273]
[1750836158855,10.18047575,146.43,146.41,6.8268]
[1750836158856,14.28359311,146.43,146.41,6.8268]
[1750836159250,10.18047575,146.43,146.41,6.8268]
[1750836159655,14.28359311,146.43,146.41,6.8268]
[1750836159853,4.10311736,146.42,146.41,6.8268]
[1750836160463,10.18047575,146.43,146.41,6.8268]
[1750836160762,4.10924694,146.42,146.41,6.8268]
[1750836161061,10.18047575,146.43,146.41,6.8268]
[1750836161263,10.18047575,146.43,146.41,13.16265273]
[1750836162262,3.35437575,146.43,146.41,6.8268]
[1750836162956,3.35437575,146.43,146.41,13.16265273]
[1750836163158,4.10924694,146.42,146.41,13.16265273]
[1750836163357,3.35437575,146.43,146.41,6.8268]
[1750836163558,4.10912319,146.42,146.41,6.8268]
[1750836164264,3.35437575,146.43,146.41,6.8268]
[1750836164454,4.10607985,146.42,146.41,6.8268]
[1750836164658,3.35437575,146.43,146.41,6.8268]
[1750836166558,2.281,146.46,146.4,6.33585273]
[1750836166759,2.281,146.46,146.41,6.33585273]
[1750836166760,38.58227073,146.45,146.41,6.33585273]
[1750836167067,4.10227073,146.44,146.42,6.33585273]
[1750836167672,34.48,146.45,146.42,6.33585273]
[1750836167673,34.48,146.45,146.43,6.8257]
[1750836167854,38.58217452,146.45,146.43,6.33585273]
[1750836168056,41.93655027,146.45,146.43,6.33585273]
[1750836168457,44.65957575,146.45,146.43,6.33585273]
[1750836168668,44.65957575,146.45,146.42,6.33585273]
[1750836168967,10.17957575,146.45,146.42,6.33585273]
[1750836169171,34.48,146.44,146.42,6.33585273]
[1750836169671,34.48,146.44,146.43,6.8259]
[1750836169873,34.48,146.44,146.43,13.16175273]
[1750836170061,34.48,146.44,146.43,6.8259]
[1750836170263,3.35437575,146.45,146.44,6.8256]
[1750836170462,41.93653562,146.45,146.44,6.8256]
[1750836171869,37.83437575,146.45,146.44,6.8256]
[1750836172070,41.93653562,146.45,146.44,6.8256]
[1750836172374,37.83437575,146.45,146.44,6.8256]
[1750836173274,37.83437575,146.45,146.44,13.19736845]
[1750836173475,3.35437575,146.45,146.44,13.19736845]
[1750836173771,37.83437575,146.45,146.44,13.19736845]
[1750836174573,3.35437575,146.45,146.44,13.19736845]
[1750836174868,37.55437575,146.45,146.44,13.19736845]
[1750836175066,3.35437575,146.45,146.44,13.19736845]
[1750836175263,37.55437575,146.45,146.44,13.19736845]
[1750836175864,3.35437575,146.45,146.44,13.19736845]
[1750836176277,37.55437575,146.45,146.44,13.19736845]
[1750836177660,34.2,146.45,146.44,13.19736845]
[1750836177865,4.11059283,146.46,146.45,6.8252]
[1750836178066,38.31059283,146.46,146.45,6.8252]
[1750836178277,38.31058952,146.46,146.45,6.8252]
[1750836178878,4.11058952,146.46,146.45,6.8252]
[1750836179278,38.31058952,146.46,146.45,6.8252]
[1750836179980,34.2,146.46,146.45,6.8252]
[1750836180185,34.2,146.46,146.45,13.19696845]
[1750836180577,38.31066803,146.46,146.45,13.19696845]
[1750836180778,34.2,146.46,146.45,13.19696845]
[1750836181282,34.2,146.46,146.45,6.8252]
[1750836181583,34.2,146.46,146.45,13.20159303]
[1750836184181,38.31313785,146.46,146.45,6.8252]
[1750836184481,41.6675136,146.46,146.44,6.37639303]
[1750836184677,37.55437575,146.46,146.44,6.37639303]
[1750836184878,44.37927575,146.46,146.44,6.37639303]
[1750836185281,10.17927575,146.46,146.44,6.37639303]
[1750836185479,34.2,146.45,146.44,13.20179303]
[1750836189485,34.2,146.45,146.44,6.8254]
[1750836190680,40.46038685,146.47,146.46,6.8247]
[1750836191993,40.45949658,146.47,146.46,6.8247]
[1750836192791,40.45949105,146.47,146.46,6.8247]
[1750836193288,47.28369105,146.47,146.45,13.19622243]
[1750836193488,2.14771745,146.46,146.45,13.19622243]
[1750836194088,2.14771745,146.46,146.45,6.8249]
[1750836197493,2.14771745,146.46,146.44,13.1950268]
[1750836197693,4.10032968,146.46,146.44,6.3696268]
[1750836197899,34.2,146.47,146.45,6.3696268]
[1750836198102,2.14741645,146.48,146.46,6.3696268]
[1750836198293,2.14701736,146.48,146.46,6.3696268]
[1750836198894,2.14701736,146.48,146.47,13.1938268]
[1750836200210,34.2,146.48,146.47,13.1938268]
[1750836202615,34.2,146.48,146.47,6.8242]
[1750836203511,34.2,146.48,146.47,13.1938268]
[1750836203712,34.2,146.48,146.47,6.8242]
[1750836203911,6.8234,146.49,146.47,6.8242]
[1750836204116,34.2,146.48,146.47,6.8242]
[1750836204811,596.3431,146.5,146.48,6.8238]
[1750836205011,34.1,146.57,146.48,11.86259959]
[1750836205213,38.20144803,146.57,146.52,3.35491135]
[1750836205417,4.10144803,146.59,146.58,6.8191]
[1750836205914,38.20144803,146.6,146.58,6.8191]
[1750836206121,38.20144803,146.6,146.57,6.8195]
[1750836206612,45.01984803,146.6,146.57,6.8195]
[1750836206815,40.9184,146.6,146.57,6.8195]
[1750836211511,6.8187,146.59,146.53,3.35491135]
[1750836212312,6.8187,146.59,146.52,6.34940452]
[1750836212517,6.8187,146.59,146.53,3.35491135]
[1750836213307,6.8187,146.59,146.56,6.8197]
[1750836216018,141.92701135,146.61,146.55,3.35491135]
[1750836216019,34.08,146.61,146.55,3.35491135]
[1750836216510,34.08,146.61,146.59,6.8186]
[1750836217810,40.8977,146.61,146.58,6.8189]
[1750836219120,40.8977,146.61,146.59,6.8186]
[1750836219323,34.08,146.61,146.59,6.8186]
[1750836222427,40.8978,146.61,146.59,6.8186]
[1750836223820,37.43491135,146.61,146.55,3.35491135]
[1750836224124,37.43491135,146.61,146.53,3.35491135]
[1750836224325,3.35491135,146.59,146.56,6.8197]
[1750836224526,10.17361135,146.59,146.56,6.8197]
[1750836225119,10.17361135,146.59,146.57,6.8195]
[1750836225628,3.35491135,146.59,146.57,6.8195]
[1750836229326,6.8184,146.6,146.57,6.8195]
[1750836229523,10.17331135,146.6,146.57,6.8195]
[1750836230528,3.35491135,146.58,146.51,6.29047688]
[1750836230828,3.35491135,146.54,146.49,13.20897688]
[1750836231129,10.17711135,146.52,146.49,6.823]
[1750836231430,3.35491135,146.5,146.49,6.823]
[1750836234630,34.08,146.51,146.49,6.823]
[1750836235930,34.08,146.51,146.48,6.8237]
[1750836235931,40.9025,146.51,146.48,6.8237]
[1750836236135,3.35491135,146.5,146.48,6.8237]
[1750836236328,3.35491135,146.5,146.44,8.56537688]
[1750836236632,10.17801135,146.5,146.47,6.824]
[1750836237534,3.35491135,146.5,146.43,10.89817688]
[1750836238234,10.17801135,146.5,146.47,6.824]
[1750836242335,6.8233,146.49,146.47,6.824]
[1750836243037,6.8233,146.49,146.46,6.8245]
[1750836243736,10.17801135,146.5,146.47,6.8241]
[1750836243930,34.08,146.51,146.44,6.29047688]
[1750836244131,3.35491135,146.5,146.44,6.29047688]
[1750836244438,10.17801135,146.5,146.47,6.8239]
[1750836245441,10.17801135,146.5,146.48,6.8237]
[1750836245633,3.35491135,146.5,146.48,6.8237]
[1750836246340,3.35491135,146.5,146.45,6.29047688]
[1750836246935,3.35491135,146.5,146.48,6.8235]
[1750836255245,3.35491135,146.5,146.49,6.8233]
[1750836258444,3.35491135,146.5,146.48,6.8235]
[1750836261251,3.35491135,146.5,146.49,6.8233]
[1750836262451,3.35491135,146.52,146.46,6.29047688]
[1750836262758,34.1,146.51,146.45,9.64538823]
[1750836262959,40.9226,146.51,146.49,6.8231]
[1750836263155,34.1,146.51,146.49,6.8231]
[1750836263361,34.1,146.51,146.46,6.29047688]
[1750836263763,34.1,146.51,146.45,9.64538823]
[1750836264461,34.1,146.51,146.46,6.29047688]
[1750836264663,34.1,146.51,146.47,6.29047688]
[1750836267164,34.1,146.51,146.5,6.8229]
[1750836268665,34.1,146.51,146.49,6.8232]
[1750836269464,34.1,146.51,146.5,6.8228]
[1750836270364,37.45491135,146.51,146.48,6.29047688]
[1750836270569,37.45491135,146.51,146.46,6.29047688]
[1750836270570,3.35491135,146.49,146.46,6.29047688]
[1750836270957,3.35491135,146.49,146.47,6.824]
[1750836271160,3.35491135,146.49,146.46,6.29047688]
[1750836272061,3.35491135,146.49,146.47,6.824]
[1750836272261,10.17821135,146.49,146.47,6.824]
[1750836272471,3.35491135,146.49,146.46,6.29047688]
[1750836272967,3.35491135,146.49,146.47,6.8242]
[1750836273357,3.35491135,146.49,146.48,6.8238]
[1750836274770,3.35491135,146.49,146.48,13.11427688]
[1750836275371,7.48238808,146.49,146.48,6.8238]
[1750836275663,7.48238808,146.49,146.48,13.11427688]
[1750836275857,7.48238808,146.49,146.48,6.29047688]
[1750836276059,14.30568808,146.49,146.48,6.29047688]
[1750836276559,14.30568808,146.49,146.47,6.29047688]
[1750836276560,7.48238808,146.49,146.47,6.29047688]
[1750836276757,4.12747673,146.48,146.46,6.29047688]
[1750836276966,38.20747673,146.47,146.46,6.29047688]
[1750836277166,34.08,146.47,146.46,6.29047688]
[1750836277366,38.20747673,146.47,146.46,6.29047688]
[1750836277763,7.673e-05,146.47,146.46,13.11517688]
[1750836277973,34.08,146.55,146.46,10.17491135]
[1750836278164,34.08,146.59,146.53,6.36924232]
[1750836278365,34.08,146.59,146.54,9.72415367]
[1750836278671,34.08,146.59,146.55,6.36924232]
[1750836278859,34.08,146.59,146.57,13.18854232]
[1750836279063,34.08,146.59,146.56,6.36924232]
[1750836279273,34.08,146.59,146.57,6.36924232]
[1750836280167,34.08,146.59,146.56,6.36924232]
[1750836281465,40.899,146.59,146.56,6.36924232]
[1750836282278,6.8192,146.58,146.56,6.36924232]
[1750836282478,34.08,146.59,146.56,6.36924232]
[1750836283169,6.8194,146.58,146.55,13.18934232]
[1750836283369,6.8194,146.58,146.56,3.32112707]
[1750836283568,6.8194,146.58,146.55,13.18934232]
[1750836283769,6.8194,146.58,146.56,3.32112707]
[1750836283971,6.8194,146.58,146.55,13.18934232]
[1750836284786,34.08,146.59,146.55,6.36924232]
[1750836285271,34.08,146.59,146.56,6.82]
[1750836287081,40.8988,146.59,146.56,6.82]
[1750836287884,40.8988,146.59,146.57,6.8196]
[1750836288079,34.08,146.59,146.57,6.8196]
[1750836293684,34.06,146.62,146.54,9.72415367]
[1750836293893,37.41491135,146.62,146.55,9.66441072]
[1750836294184,37.41491135,146.62,146.55,6.36924232]
[1750836294388,5.6405988,146.65,146.58,9.72415367]
[1750836294589,5.6405988,146.65,146.55,34.06]
[1750836294590,5.6405988,146.65,146.59,9.66252628]
[1750836294891,5.6405988,146.65,146.59,9.72415367]
[1750836295089,5.6405988,146.65,146.63,6.8165]
[1750836295282,5.6405988,146.65,146.59,9.72415367]
[1750836295482,5.6405988,146.65,146.6,3.29256996]
[1750836295678,5.6405988,146.65,146.59,9.72415367]
[1750836295883,5.6405988,146.65,146.6,3.29238255]
[1750836296084,5.6405988,146.65,146.59,9.72415367]
[1750836296385,5.6405988,146.65,146.64,6.8163]
[1750836320701,5.6405988,146.65,146.6,6.36924232]
[1750836321098,5.6405988,146.65,146.6,9.72415367]
[1750836321603,5.6405988,146.65,146.64,6.8163]
[1750836322101,5.6405988,146.65,146.64,10.12220304]
[1750836324710,5.6405988,146.65,146.64,6.8163]
[1750836324905,5.6405988,146.65,146.64,10.12018339]
[1750836326307,5.6405988,146.65,146.64,10.12010091]
[1750836327502,3.35491135,146.71,146.68,6.8143]
[1750836327705,34.1,146.7,146.64,9.72415367]
[1750836327906,34.1,146.7,146.65,3.30324287]
[1750836328210,34.1,146.7,146.64,9.72415367]
[1750836328211,3.35491135,146.69,146.64,6.36924232]
[1750836328412,3.35491135,146.69,146.63,6.36924232]
[1750836328714,6.8147,146.68,146.65,6.8156]
[1750836328912,3.35491135,146.69,146.65,6.8156]
[1750836329415,3.35491135,146.69,146.63,6.36924232]
[1750836329616,3.35491135,146.69,146.64,3.3042792]
[1750836329913,3.35491135,146.69,146.63,6.36924232]
[1750836330108,10.16901135,146.69,146.67,6.8147]
[1750836331320,10.16901135,146.69,146.63,6.36924232]
[1750836331321,6.8145,146.68,146.63,6.36924232]
[1750836331620,10.16941135,146.68,146.64,3.30638164]
[1750836331811,10.16941135,146.68,146.66,6.8152]
[1750836332312,10.16941135,146.68,146.6,140.53186424]
[1750836332313,3.35491135,146.68,146.67,6.8149]
[1750836332710,37.45491135,146.7,146.64,6.36924232]
[1750836332911,37.45491135,146.7,146.65,3.29665637]
[1750836333214,37.45491135,146.7,146.64,6.36924232]
[1750836333519,37.45491135,146.7,146.68,6.8142]
[1750836336617,3.35491135,146.7,146.68,6.8142]
[1750836336925,37.75491135,146.7,146.69,6.814]
[1750836338215,37.75491135,146.7,146.68,6.8142]
[1750836339729,3.35491135,146.7,146.69,6.814]
[1750836339921,37.73491135,146.7,146.69,6.814]
[1750836340431,34.38,146.7,146.69,6.814]
[1750836340620,588.96,146.73,146.69,6.814]
[1750836340621,3.34298019,146.76,146.69,3.3047606]
[1750836340928,3.34298019,146.74,146.71,6.34392925]
[1750836341114,3.34298019,146.72,146.7,6.34392925]
[1750836341320,3.34298019,146.72,146.66,15.04938464]
[1750836341321,37.72504402,146.72,146.69,6.34392925]
[1750836341524,34.38,146.72,146.71,6.8131]
[1750836342019,3.34504402,146.76,146.75,6.811]
[1750836342217,34.38,146.77,146.72,6.33962968]
[1750836342421,34.38,146.77,146.73,6.33962968]
[1750836342823,34.38,146.77,146.76,6.8108]
[1750836343225,588.8,146.86,146.73,6.33962968]
[1750836343417,3.34504402,146.82,146.75,6.33962968]
[1750836343623,34.38,146.82,146.76,3.29242737]
[1750836343922,34.38,146.83,146.77,12.97641949]
[1750836344111,34.38,146.83,146.77,9.6846737]
[1750836344314,37.72504402,146.83,146.76,6.33962968]
[1750836344927,44.53264402,146.83,146.76,6.33962968]
[1750836345122,34.38,146.83,146.77,3.28287129]
[1750836345327,6.8085,146.81,146.74,12.0354737]
[1750836345527,34.38,146.83,146.74,12.0354737]
[1750836345718,3.34504402,146.82,146.75,9.61352089]
[1750836345920,6.8087,146.81,146.74,12.0354737]
[1750836346125,3.34504402,146.82,146.75,6.33962968]
[1750836346325,10.15324402,146.82,146.79,6.8091]
[1750836347723,3.34504402,146.82,146.74,8.69042968]
[1750836347933,36.7447,146.83,146.73,44.0646737]
[1750836347934,3.34504402,146.81,146.73,44.0646737]
[1750836348323,10.15354402,146.81,146.78,6.8095]
[1750836348816,34.38,146.82,146.79,6.8091]
[1750836349022,34.38,146.82,146.75,3.34504402]
[1750836350226,2.1818,146.84,146.82,6.8079]
[1750836350434,34.38,146.83,146.82,6.8079]
[1750836351034,2.1818,146.84,146.82,6.8077]
[1750836351237,34.38,146.83,146.77,3.34504402]
[1750836352033,34.38,146.83,146.82,6.808]
[1750836357834,623.16,146.86,146.84,6.8066]
[1750836358334,623.16,146.86,146.79,3.34504402]
[1750836358534,34.36,146.86,146.79,3.34504402]
[1750836359135,34.36,146.86,146.84,6.8068]
[1750836359539,2.1954,146.9,146.81,3.34504402]
[1750836359738,34.96,146.92,146.9,6.8043]
[1750836360124,595.178,146.94,146.9,6.8043]
[1750836360327,630.138,146.94,146.9,6.8043]
[1750836360732,9.88e-05,146.91,146.9,6.8043]
[1750836360938,17.0148108,147.21,146.91,20.53]
[1750836361233,36.6,147.28,146.91,89.98]
[1750836361432,588.3,147.34,147.12,3.32813596]
[1750836361433,36.6,147.31,147.12,3.32813596]
[1750836361631,7.0499,147.29,147.18,3.32813596]
[1750836361831,588.3,147.34,147.13,4.6052]
[1750836361832,36.6,147.32,147.13,4.6052]
[1750836362032,36.6,147.39,147.25,3.32813596]
[1750836362231,4.6866,147.43,147.2,3.32813596]
[1750836362232,6.7836,147.35,147.27,3.32813596]
[1750836362433,36.6,147.38,147.29,3.32813596]
[1750836362738,38.16,147.41,147.29,3.32813596]
[1750836363038,6.818,147.43,147.32,3.32813596]
[1750836363234,3.32813596,147.41,147.28,3.32813596]
[1750836363534,38.16,147.43,147.2,3.32813596]
[1750836363732,3.32813596,147.37,147.21,38.12]
[1750836363932,3.32813596,147.32,147.21,62.0]
[1750836364134,6.818,147.53,147.18,7.1067]
[1750836364334,630.1163,147.52,147.19,40.28]
[1750836364633,5.52657632,147.5,147.2,45.80657632]
[1750836364835,5.52657632,147.39,147.2,40.28]
[1750836365030,591.0,147.64,147.2,82.85630528]
[1750836365233,4.616,147.62,147.36,5.52657632]
[1750836365433,4.616,147.62,147.3,25.99657632]
[1750836365434,5.52657632,147.6,147.37,42.98]
[1750836365636,5.52657632,147.52,147.39,5.52657632]
[1750836365937,5.52657632,147.49,147.4,6.73528483]
[1750836366135,5.52657632,147.49,147.36,42.94]
[1750836366136,5.52657632,147.43,147.36,42.94]
[1750836366336,5.52657632,147.5,147.31,4.698]
[1750836366538,5.52657632,147.39,147.32,13.23501108]
[1750836366733,42.94,147.43,147.33,13.23501108]
[1750836367040,5.52657632,147.34,147.11,2609.18]
[1750836367337,5.52657632,147.26,147.16,50.10657632]
[1750836367641,5.52657632,147.4,147.18,5.52657632]
[1750836367642,5.52657632,147.28,147.18,5.52657632]
[1750836367840,5.52657632,147.26,147.19,6.69321507]
[1750836368043,5.52657632,147.24,147.18,44.58]
[1750836368339,44.58,147.26,147.13,5.52657632]
[1750836368638,44.58,147.28,147.17,5.52657632]
[1750836368838,5.52657632,147.31,147.14,44.58]
[1750836368839,44.58,147.27,147.14,44.58]
[1750836369034,5.52657632,147.25,147.12,4.534]
[1750836369342,5.52657632,147.25,147.1,44.58]
[1750836369343,5.52657632,147.22,147.1,44.58]
[1750836369529,44.56,147.21,147.11,6.67697201]
[1750836369736,44.56,147.21,147.1,44.58]
[1750836369939,44.56,147.21,147.11,6.67708183]
[1750836370240,44.56,147.21,147.1,44.58]
[1750836371036,8.48908383,147.22,147.1,44.58]
[1750836371745,8.48908383,147.24,147.1,53.06908383]
[1750836371951,44.56,147.23,147.1,53.06908383]
[1750836372334,595.40908383,147.25,147.1,53.06908383]
[1750836372534,44.56,147.24,147.1,44.58]
[1750836372749,595.40908383,147.25,147.11,8.48908383]
[1750836372946,44.56,147.24,147.11,8.48908383]
[1750836373240,6.789,147.23,147.15,6.7923]
[1750836373440,44.56,147.24,147.14,8.48908383]
[1750836373842,44.56,147.24,147.1,44.58]
[1750836373843,44.56,147.24,147.12,8.48908383]
[1750836374043,8.48908383,147.23,147.12,8.48908383]
[1750836374848,44.56,147.24,147.12,8.48908383]
[1750836375642,4.6169,147.28,147.15,8.48908383]
[1750836375942,44.56,147.26,147.16,44.56]
[1750836376147,44.56,147.26,147.14,8.48069193]
[1750836376342,51.3476,147.26,147.14,8.48069193]